{"text_format":"1","workbook":"xlsx","n_sheets":12,"sheets":["Readme 1st","Tarefas","Team","List","Dashboard","Planilha1","M1_Template","Meetings_View","M1_Template (4)","M1_Template (3)","M1_Template (2)","eTask_ScratchCharts"],"not_rendered":{"charts":2,"images":17,"macros":1,"external_links":0,"defined_names":5,"comments":0,"pivot_tables":0},"unopened":[],"bounds":{"document_bytes":16777216,"sheet_cells":100000,"rows_first":2000,"rows_last":500,"rows_between":2000,"halvings":0,"cell_chars":16384,"cell_head_chars":4096},"cells_cut":0,"cells_raw":0,"read":"whole","date_system":"1900"}

{"sheet":"Readme 1st","index":0,"n_rows":0,"n_cols":0,"rows_kept":0,"cut":false,"hidden":false,"merged":[]}

{"sheet":"Tarefas","index":1,"n_rows":101,"n_cols":10,"rows_kept":101,"cut":false,"hidden":false,"merged":[]}
["ID","Title","Assignee","Prioridade","Status","Start Date","Due Date","Progress","Project","Notes"]
[1,"Optimize pricing page copy","John Miller","Medium","In Progress","2025-07-02","2026-07-07",0.45,"Product","Add a clear success criterion and owner."]
[2,"Follow up on demo early-discount payment link","Hans Müller","Medium","In Progress","2025-07-11","2026-07-31",0.85,"Finance","Verify in GA4 DebugView with debug_mode enabled."]
[3,"Validate invoice reconciliation sheet","Emily Johnson","Medium","In Progress","2025-07-05","2026-07-16",0.75,"Finance","Numbers don’t match last month’s report."]
[4,"Ship demo download flow","Anna Schneider","High","In Progress","2025-06-19","2026-07-02",0.35,"Product","High priority due to upcoming demo traffic."]
[5,"Update customer onboarding checklist","Michael Brown","Medium","In Progress","2025-07-27","2026-08-20",0.6,"Support","Include steps for non-technical users."]
[6,"Implement CSV export edge cases","Lukas Weber","Low","Completed","2025-07-10","2026-07-24",1,"Data","Two edge cases still failing."]
[7,"Review cookie banner compliance text","Sarah Williams","Medium","In Progress","2025-06-16","2026-06-21",0.7,"Legal","Align with legal/compliance before publishing."]
[8,"Fix landing page mobile layout","Laura Fischer","High","In Progress","2025-06-29","2026-07-20",0.55000000000000004,"Web","Needs screenshots from latest build."]
[9,"Investigate dashboard load-time bottleneck","David Anderson","High","In Progress","2025-08-06","2026-08-18",0.4,"Data","Customer reported inconsistent behavior."]
[10,"Prepare sprint planning backlog","Thomas Becker","Medium","Completed","2025-06-28","2026-07-19",1,"Product","Waiting for stakeholder sign-off."]
[11,"Finalize release notes for v1.4","Jessica Taylor","Medium","In Progress","2025-06-30","2026-07-22",0.8,"Product","Keep terminology consistent with UI labels."]
[12,"Test email template branding","Sophie Wagner","Medium","In Progress","2025-06-25","2026-07-06",0.9,"Web","Re-test needed after last hotfix."]
[13,"Clean up data import deduplication","Robert Davis","High","In Progress","2025-06-13","2026-06-22",0.5,"Data","Numbers don’t match last month’s report."]
[14,"Review GA4 event naming conventions","Daniel Hoffmann","High","In Progress","2025-08-09","2026-09-02",0.35,"Marketing","Verify in GA4 DebugView with debug_mode enabled."]
[15,"Configure error logging alert thresholds","Amanda Wilson","Medium","In Progress","2025-05-25","2026-06-13",0.55000000000000004,"Infrastructure","Too many false alarms at night."]
[16,"Refactor support macro responses","Christian Lehmann","Low","In Progress","2025-05-24","2026-06-06",0.3,"Support","Include steps for non-technical users."]
[17,"Update feature request shortlist","Andrew Walker","Medium","Completed","2025-05-30","2025-06-26",1,"Product","Add a clear success criterion and owner."]
[18,"Prepare A/B test hypothesis doc","Jan Richter","Medium","In Progress","2025-06-06","2026-06-10",0.15,"Marketing","Limit scope to 1-page change to ship on time."]
[19,"Fix checkout tracking event mapping","Nicole Hall","High","In Progress","2025-08-18","2026-09-08",0.99,"Finance","Verify in GA4 DebugView with debug_mode enabled."]
[20,"Validate role-based access permissions","Oliver Meier","Medium","In Progress","2025-07-02","2026-07-17",0.7,"Security","Align with legal/compliance before publishing."]
[21,"Implement backup restore procedure","Justin Scott","High","In Progress","2025-06-29","2026-07-20",0.75,"Data","Re-test needed after last hotfix."]
[22,"Write vendor contract clause changes","Megan Robinson","Low","In Progress","2025-06-20","2026-06-06",0.3,"Legal","Waiting for stakeholder sign-off."]
[23,"Optimize SEO meta descriptions","Benjamin Krüger","Low","In Progress","2025-07-14","2026-06-06",0.3,"Web","Confirm translation consistency (EN/DE)."]
[24,"Investigate demo download flow","Florian Brandt","Low","In Progress","2025-06-23","2026-06-06",0.3,"Product","High priority due to upcoming demo traffic."]
[25,"Finalize refund policy text","Patrick Neumann","High","In Progress","2025-08-29","2025-09-03",0.85,"Legal","Align with legal/compliance before publishing."]
[26,"Update knowledge base category structure","Stephanie King","Low","In Progress","2025-08-18","2025-09-08",0.35,"Support","Content duplicated in several sections."]
[27,"Test CSV export edge cases","Tobias Sommer","Low","In Progress","2025-06-16","2026-07-17",0.6,"Data","Two edge cases still failing."]
[28,"Review checkout tracking event mapping","Ryan Young","Low","In Progress","2025-07-06","2026-08-01",0.55000000000000004,"Finance","Verify in GA4 DebugView with debug_mode enabled."]
[29,"Implement demo early-discount payment link","Lukas Weber","Low","To Do","2025-06-15","2025-07-14",0,"Finance","Waiting for stakeholder sign-off."]
[30,"Analyze marketing audience exclusions","Emily Johnson","Medium","In Progress","2025-08-06","2025-08-25",0.45,"Marketing","Remove low-quality placements."]
[31,"Document backup restore procedure","Daniel Lewis","Medium","In Progress","2025-06-18","2025-07-04",0.8,"Data","Include steps for non-technical users."]
[32,"Fix error logging alert thresholds","Julia Klein","High","In Progress","2025-07-01","2025-07-09",0.9,"Infrastructure","Too many false alarms at night."]
[33,"Prepare team training deck","Kevin Harris","Medium","In Progress","2025-05-19","2025-06-23",0.25,"HR","Needs screenshots from latest build."]
[34,"Refactor demo download flow","Anna Schneider","Medium","In Progress","2025-08-06","2025-08-28",0.55000000000000004,"Product","Customer reported inconsistent behavior."]
[35,"Validate invoice reconciliation sheet","Hans Müller","High","Completed","2025-08-18","2025-08-20",1,"Finance","Numbers don’t match last month’s report."]
[36,"Update GA4 event naming conventions","Jessica Taylor","Medium","In Progress","2025-06-19","2025-07-11",0.65,"Marketing","Keep terminology consistent with UI labels."]
[37,"Fix landing page mobile layout","John Miller","Medium","Canceled","2025-05-25","2025-06-13",0.3,"Web","Blocked by vendor response."]
[38,"Investigate dashboard load-time bottleneck","Markus Schäfer","High","In Progress","2025-08-05","2025-08-19",0.75,"Data","Customer reported inconsistent behavior."]
[39,"Prepare sprint planning backlog","Christopher Moore","Medium","In Progress","2025-06-30","2025-07-05",0.15,"Product","Add a clear success criterion and owner."]
[40,"Update cookie banner compliance text","Laura Clark","High","In Progress","2025-05-25","2025-06-01",0.9,"Legal","Align with legal/compliance before publishing."]
[41,"Align roadmap scope with sales feedback","John Miller","High","In Progress","2025-08-11","2025-09-05",0.9,"Product","Dependencies with data team."]
[42,"Remove former employees from system access","Hans Müller","High","In Progress","2025-08-12","2025-08-14",0.7,"Security","Two accounts still active due to shared roles."]
[43,"Add real examples to API error responses","Emily Johnson","Medium","In Progress","2025-08-06","2025-08-20",0.5,"Product","Developers confused by vague error messages."]
[44,"Validate expense entries from July invoices","Anna Schneider","High","Completed","2025-08-04","2025-08-18",1,"Finance","Three invoices don’t match PO values."]
[45,"Fix demo environment login timeout","Michael Brown","High","In Progress","2025-08-07","2025-08-10",0.8,"Product","Timeout happens after 15 minutes idle."]
[46,"Update onboarding checklist for new hires","Lukas Weber","Medium","To Do","2025-08-13","2025-08-30",0,"HR","Last version missing remote setup steps."]
[47,"Investigate drop in conversion from demo to paid","Sarah Williams","High","In Progress","2025-08-01","2025-08-15",0.65,"Marketing","Users abandon checkout after pricing page."]
[48,"Correct spacing and alignment issues on homepage","Laura Fischer","Medium","In Progress","2025-08-09","2025-08-22",0.4,"Web","Mobile view broken on small screens."]
[49,"Follow up with client after escalation call","David Anderson","High","In Progress","2025-08-05","2025-08-07",0.8,"Support","Client requested written confirmation."]
[50,"Fix incorrect totals in pricing calculator","Thomas Becker","High","To Do","2025-08-14","2025-08-28",0,"Web","Discount logic applied twice."]
[51,"Collect team feedback for sprint retrospective","Jessica Taylor","Medium","In Progress","2025-08-15","2025-08-19",0.3,"Product","Only 3 of 8 responses received."]
[52,"Increase server limits during peak hours","Sophie Wagner","High","In Progress","2025-08-02","2025-08-16",0.55000000000000004,"Infrastructure","CPU spikes causing slowdowns."]
[53,"Add missing answers to customer FAQ","Robert Davis","Low","Completed","2025-08-10","2025-08-24",1,"Support","Same questions repeating in tickets."]
[54,"Prepare GDPR impact summary for EU customers","Daniel Hoffmann","High","To Do","2025-08-18","2025-09-05",0,"Legal","Required before signing new contracts."]
[55,"Close August budget numbers","Amanda Wilson","High","In Progress","2025-08-03","2025-08-12",0.75,"Finance","Waiting final cloud invoice."]
[56,"Review survey questions before sending to staff","Julia Klein","Low","In Progress","2025-08-06","2025-08-25",0.2,"HR","Questions too long per feedback."]
[57,"Rewrite landing page headline for clarity","Christopher Moore","High","In Progress","2025-08-08","2025-08-27",0.5,"Web","Bounce rate still high."]
[58,"Delete obsolete tables from data warehouse","Markus Schäfer","High","In Progress","2025-08-01","2025-08-31",0.6,"Data","Confirmed not used by reports."]
[59,"Identify cause of low email campaign CTR","Ashley Thompson","Medium","In Progress","2025-08-04","2025-08-11",0.7,"Marketing","Subject lines underperforming."]
[60,"Resolve payment mismatch with supplier","Felix Braun","High","To Do","2025-08-12","2025-08-13",0,"Finance","Supplier claims underpayment."]
[61,"Stabilize failing integration tests","Brian Martinez","High","In Progress","2025-08-07","2025-08-14",0.7,"Product","Failures linked to recent merge."]
[62,"Update job descriptions on careers page","Nina König","Low","To Do","2025-08-16","2025-08-30",0,"HR","Descriptions outdated by 2 years."]
[63,"Finalize release notes with confirmed features","Sebastian Wolf","Medium","In Progress","2025-08-09","2025-08-18",0.45,"Product","Two features still under debate."]
[64,"Apply requested changes to client contract","Laura Clark","High","In Progress","2025-08-05","2025-08-20",0.6,"Legal","Client wants revised termination clause."]
[65,"Test nightly database backups manually","Patrick Neumann","High","Completed","2025-08-02","2025-08-02",1,"Data","Restore tested successfully."]
[66,"Review admin permissions across teams","Daniel Lewis","Medium","In Progress","2025-08-06","2025-08-21",0.4,"Security","Some users have overlapping roles."]
[67,"Reorganize knowledge base categories","Katharina Vogel","Low","In Progress","2025-08-11","2025-09-04",0.3,"Support","Content duplicated in several sections."]
[68,"Schedule quarterly account review call","Andrew Walker","Medium","To Do","2025-08-19","2025-08-26",0,"Support","Client availability pending."]
[69,"Improve readability of dashboard charts","Anna Schneider","Medium","In Progress","2025-08-03","2025-08-22",0.65,"Data","Labels overlap on small screens."]
[70,"Reduce noise from log alerts","Ivan Petrov","High","In Progress","2025-08-01","2025-08-15",0.85,"Infrastructure","Too many false alarms at night."]
[71,"Evaluate influencer results from July","Fatimah Mansur","Low","To Do","2025-08-17","2025-08-31",0,"Marketing","Need cost vs revenue breakdown."]
[72,"Add compliance steps to partner guide","Ahmad Altahir","Medium","In Progress","2025-08-08","2025-08-23",0.5,"Marketing","Legal sent comments late."]
[73,"Script demo flow for sales calls","Beatriz Flores","Medium","In Progress","2025-08-10","2025-08-20",0.55000000000000004,"Product","Sales asked for clearer transitions."]
[74,"Run usability tests with first-time users","Layla Akhalidi","High","In Progress","2025-08-06","2025-08-12",0.75,"Product","Users struggle with task filters."]
[75,"Update outdated third-party libraries","Tato Suzuki","High","In Progress","2025-08-02","2025-08-14",0.9,"Product","One dependency still blocked."]
[76,"Measure mobile app load time","Kaito Takahashi","High","In Progress","2025-08-04","2025-08-19",0.6,"Product","Android slower than iOS."]
[77,"Remove duplicated entries in employee list","Aleni Karagianni","Low","Completed","2025-07-03","2025-07-10",1,"HR","Data cleanup finished."]
[78,"Resolve client dispute over last invoice","Mariazinha da Silva","High","Completed","2025-08-07","2025-08-11",1,"Finance","Client reviewing explanation."]
[79,"Analyze which demo features convert better","Valentina Magalhães","Medium","In Progress","2025-08-05","2025-08-18",0.45,"Product","Reporting still incomplete."]
[80,"Prioritize top 10 customer feature requests","João da Silva","Medium","In Progress","2025-08-09","2025-08-23",0.55000000000000004,"Product","Votes already consolidated."]
[81,"Check accessibility issues reported by users","Ana Souza","High","To Do","2025-08-18","2025-09-01",0,"Web","Color contrast flagged."]
[82,"Update refund terms with clearer language","John Miller","Low","In Progress","2025-08-11","2025-08-20",0.35,"Legal","Support receiving repeated questions."]
[83,"Identify unused cloud resources","Hans Müller","High","In Progress","2025-08-03","2025-08-31",0.6,"Infrastructure","Potential monthly savings."]
[84,"Record product demo with real use case","Emily Johnson","Medium","To Do","2025-08-16","2025-08-22",0,"Marketing","Waiting customer permission."]
[85,"Test internal controls on payment flow","Anna Schneider","High","In Progress","2025-08-06","2025-08-28",0.5,"Finance","Two exceptions found."]
[86,"Run security awareness session","Michael Brown","Medium","Completed","2025-08-01","2025-08-05",1,"Security","Attendance confirmed."]
[87,"Balance workload across support agents","Lukas Weber","Low","In Progress","2025-08-08","2025-08-29",0.25,"HR","One agent overloaded."]
[88,"Schedule posts for next 2 weeks","Sarah Williams","Medium","In Progress","2025-08-07","2025-08-21",0.65,"Marketing","Content approved."]
[89,"Fix form validation errors reported by users","Laura Fischer","High","In Progress","2025-08-05","2025-08-12",0.8,"Web","Errors on Safari resolved."]
[90,"Prepare customer satisfaction survey","David Anderson","Medium","To Do","2025-08-20","2025-09-03",0,"Support","Waiting final questions."]
[91,"Refactor slow reporting queries","Thomas Becker","High","In Progress","2025-08-01","2025-08-30",0.55000000000000004,"Product","Performance improved but not enough."]
[92,"Update company OKRs for Q4","Jessica Taylor","High","In Progress","2025-08-04","2025-08-18",0.7,"Management","Leadership review scheduled."]
[93,"Test failover during simulated outage","Sophie Wagner","High","Completed","2025-07-28","2025-07-28",1,"Infrastructure","System recovered as expected."]
[94,"Tag user feedback by theme","Robert Davis","Low","In Progress","2025-08-06","2025-08-20",0.45,"Product","Manual review still needed."]
[95,"Send renewal reminders to expiring clients","Daniel Hoffmann","Medium","In Progress","2025-08-09","2025-08-31",0.6,"Finance","Waiting one confirmation."]
[96,"Review SLA breaches from last month","Amanda Wilson","High","Completed","2025-08-02","2025-08-16",1,"Support","Root causes documented."]
[97,"Clarify metric definitions on dashboards","Julia Klein","Low","To Do","2025-08-19","2025-09-05",0,"Data","Teams interpret metrics differently."]
[98,"Check translation quality for DE and ES pages","Christopher Moore","Medium","In Progress","2025-08-07","2025-08-26",0.5,"Web","Some terms inconsistent."]
[99,"Investigate abnormal data spike","Markus Schäfer","High","In Progress","2025-08-03","2025-08-10",0.95,"Data","Cause linked to duplicate imports."]
[100,"Archive unused marketing assets","Ashley Thompson","Low","Completed","2025-08-01","2025-08-04",1,"Marketing","Cleanup finished."]

{"sheet":"Team","index":2,"n_rows":41,"n_cols":2,"rows_kept":41,"cut":false,"hidden":false,"merged":[]}
["Full Name","Email"]
["John Miller","john.miller@damfus.com"]
["Hans Müller","hans.mueller@damfus.com"]
["Emily Johnson","emily.johnson@damfus.com"]
["Anna Schneider","anna.schneider@damfus.com"]
["Michael Brown","michael.brown@damfus.com"]
["Lukas Weber","lukas.weber@damfus.com"]
["Sarah Williams","sarah.williams@damfus.com"]
["Laura Fischer","laura.fischer@damfus.com"]
["David Anderson","david.anderson@damfus.com"]
["Thomas Becker","thomas.becker@damfus.com"]
["Jessica Taylor","jessica.taylor@damfus.com"]
["Sophie Wagner","sophie.wagner@damfus.com"]
["Robert Davis","robert.davis@damfus.com"]
["Daniel Hoffmann","daniel.hoffmann@damfus.com"]
["Amanda Wilson","amanda.wilson@damfus.com"]
["Julia Klein","julia.klein@damfus.com"]
["Christopher Moore","christopher.moore@damfus.com"]
["Markus Schäfer","markus.schaefer@damfus.com"]
["Ashley Thompson","ashley.thompson@damfus.com"]
["Felix Braun","felix.braun@damfus.com"]
["Brian Martinez","brian.martinez@damfus.com"]
["Nina König","nina.koenig@damfus.com"]
["Kevin Harris","kevin.harris@damfus.com"]
["Sebastian Wolf","sebastian.wolf@damfus.com"]
["Laura Clark","laura.clark@damfus.com"]
["Patrick Neumann","patrick.neumann@damfus.com"]
["Daniel Lewis","daniel.lewis@damfus.com"]
["Katharina Vogel","katharina.vogel@damfus.com"]
["Megan Robinson","megan.robinson@damfus.com"]
["Jan Richter","jan.richter@damfus.com"]
["Andrew Walker","andrew.walker@damfus.com"]
["Tobias Sommer","tobias.sommer@damfus.com"]
["Nicole Hall","nicole.hall@damfus.com"]
["Florian Brandt","florian.brandt@damfus.com"]
["Ryan Young","ryan.young@damfus.com"]
["Oliver Meier","oliver.meier@damfus.com"]
["Stephanie King","stephanie.king@damfus.com"]
["Christian Lehmann","christian.lehmann@damfus.com"]
["Justin Scott","justin.scott@damfus.com"]
["Benjamin Krüger","benjamin.krueger@damfus.com"]

{"sheet":"List","index":3,"n_rows":5,"n_cols":2,"rows_kept":5,"cut":false,"hidden":true,"merged":[]}
["Priority","Status"]
["Low","To Do"]
["Medium","In Progress"]
["High","Completed"]
[null,"Canceled"]

{"sheet":"Dashboard","index":4,"n_rows":100,"n_cols":8,"rows_kept":100,"cut":false,"hidden":true,"merged":[]}
["Status","Number of Tasks",null,"Assignee","Number of Tasks",null,"Project Name","Average Progress (%)"]
["To Do",{"$f":"COUNTIF(Tarefas!E:E,A2)","v":12},null,{"$f":"IFERROR(INDEX(Tarefas!$C$2:$C$891,SMALL(IF(ISERROR(MATCH(Tarefas!$C$2:$C$891,D$1:D1,0))*(Tarefas!$C$2:$C$891<>\"\"),ROW(Tarefas!$C$2:$C$891)-ROW(Tarefas!#REF!)+1),1)),\"\")","v":""},{"$f":"IF(D2=\"\",\"\",COUNTIF(Tarefas!C:C,D2))","v":""},null,"Projeto A",{"$f":"AVERAGEIF(Tarefas!I:I, G2, Tarefas!H:H)","v":{"$error":"#DIV/0!"}}]
["In Progress",{"$f":"COUNTIF(Tarefas!E:E,A3)","v":74},null,{"$f":"IFERROR(INDEX(Tarefas!$C$2:$C$891,SMALL(IF(ISERROR(MATCH(Tarefas!$C$2:$C$891,D$1:D2,0))*(Tarefas!$C$2:$C$891<>\"\"),ROW(Tarefas!$C$2:$C$891)-ROW(Tarefas!#REF!)+1),1)),\"\")","v":""},{"$f":"IF(D3=\"\",\"\",COUNTIF(Tarefas!C:C,D3))","v":""},null,"Projeto B",{"$f":"AVERAGEIF(Tarefas!I:I, G3, Tarefas!H:H)","v":{"$error":"#DIV/0!"}}]
["Completed",{"$f":"COUNTIF(Tarefas!E:E,A4)","v":13},null,{"$f":"IFERROR(INDEX(Tarefas!$C$2:$C$891,SMALL(IF(ISERROR(MATCH(Tarefas!$C$2:$C$891,D$1:D3,0))*(Tarefas!$C$2:$C$891<>\"\"),ROW(Tarefas!$C$2:$C$891)-ROW(Tarefas!#REF!)+1),1)),\"\")","v":""},{"$f":"IF(D4=\"\",\"\",COUNTIF(Tarefas!C:C,D4))","v":""},null,"Projeto C",{"$f":"AVERAGEIF(Tarefas!I:I, G4, Tarefas!H:H)","v":{"$error":"#DIV/0!"}}]
["Canceled",null,null,{"$f":"IFERROR(INDEX(Tarefas!$C$2:$C$891,SMALL(IF(ISERROR(MATCH(Tarefas!$C$2:$C$891,D$1:D4,0))*(Tarefas!$C$2:$C$891<>\"\"),ROW(Tarefas!$C$2:$C$891)-ROW(Tarefas!#REF!)+1),1)),\"\")","v":""},{"$f":"IF(D5=\"\",\"\",COUNTIF(Tarefas!C:C,D5))","v":""}]
[null,null,null,{"$f":"IFERROR(INDEX(Tarefas!$C$2:$C$891,SMALL(IF(ISERROR(MATCH(Tarefas!$C$2:$C$891,D$1:D5,0))*(Tarefas!$C$2:$C$891<>\"\"),ROW(Tarefas!$C$2:$C$891)-ROW(Tarefas!#REF!)+1),1)),\"\")","v":""},{"$f":"IF(D6=\"\",\"\",COUNTIF(Tarefas!C:C,D6))","v":""}]
[null,null,null,{"$f":"IFERROR(INDEX(Tarefas!$C$2:$C$891,SMALL(IF(ISERROR(MATCH(Tarefas!$C$2:$C$891,D$1:D6,0))*(Tarefas!$C$2:$C$891<>\"\"),ROW(Tarefas!$C$2:$C$891)-ROW(Tarefas!#REF!)+1),1)),\"\")","v":""},{"$f":"IF(D7=\"\",\"\",COUNTIF(Tarefas!C:C,D7))","v":""}]
[null,null,null,{"$f":"IFERROR(INDEX(Tarefas!$C$2:$C$891,SMALL(IF(ISERROR(MATCH(Tarefas!$C$2:$C$891,D$1:D7,0))*(Tarefas!$C$2:$C$891<>\"\"),ROW(Tarefas!$C$2:$C$891)-ROW(Tarefas!#REF!)+1),1)),\"\")","v":""},{"$f":"IF(D8=\"\",\"\",COUNTIF(Tarefas!C:C,D8))","v":""}]
[null,null,null,{"$f":"IFERROR(INDEX(Tarefas!$C$2:$C$891,SMALL(IF(ISERROR(MATCH(Tarefas!$C$2:$C$891,D$1:D8,0))*(Tarefas!$C$2:$C$891<>\"\"),ROW(Tarefas!$C$2:$C$891)-ROW(Tarefas!#REF!)+1),1)),\"\")","v":""},{"$f":"IF(D9=\"\",\"\",COUNTIF(Tarefas!C:C,D9))","v":""}]
[null,null,null,{"$f":"IFERROR(INDEX(Tarefas!$C$2:$C$891,SMALL(IF(ISERROR(MATCH(Tarefas!$C$2:$C$891,D$1:D9,0))*(Tarefas!$C$2:$C$891<>\"\"),ROW(Tarefas!$C$2:$C$891)-ROW(Tarefas!#REF!)+1),1)),\"\")","v":""},{"$f":"IF(D10=\"\",\"\",COUNTIF(Tarefas!C:C,D10))","v":""}]
[null,null,null,{"$f":"IFERROR(INDEX(Tarefas!$C$2:$C$891,SMALL(IF(ISERROR(MATCH(Tarefas!$C$2:$C$891,D$1:D10,0))*(Tarefas!$C$2:$C$891<>\"\"),ROW(Tarefas!$C$2:$C$891)-ROW(Tarefas!#REF!)+1),1)),\"\")","v":""},{"$f":"IF(D11=\"\",\"\",COUNTIF(Tarefas!C:C,D11))","v":""}]
[null,null,null,{"$f":"IFERROR(INDEX(Tarefas!$C$2:$C$891,SMALL(IF(ISERROR(MATCH(Tarefas!$C$2:$C$891,D$1:D11,0))*(Tarefas!$C$2:$C$891<>\"\"),ROW(Tarefas!$C$2:$C$891)-ROW(Tarefas!#REF!)+1),1)),\"\")","v":""},{"$f":"IF(D12=\"\",\"\",COUNTIF(Tarefas!C:C,D12))","v":""}]
[null,null,null,{"$f":"IFERROR(INDEX(Tarefas!$C$2:$C$891,SMALL(IF(ISERROR(MATCH(Tarefas!$C$2:$C$891,D$1:D12,0))*(Tarefas!$C$2:$C$891<>\"\"),ROW(Tarefas!$C$2:$C$891)-ROW(Tarefas!#REF!)+1),1)),\"\")","v":""},{"$f":"IF(D13=\"\",\"\",COUNTIF(Tarefas!C:C,D13))","v":""}]
[null,null,null,{"$f":"IFERROR(INDEX(Tarefas!$C$2:$C$891,SMALL(IF(ISERROR(MATCH(Tarefas!$C$2:$C$891,D$1:D13,0))*(Tarefas!$C$2:$C$891<>\"\"),ROW(Tarefas!$C$2:$C$891)-ROW(Tarefas!#REF!)+1),1)),\"\")","v":""},{"$f":"IF(D14=\"\",\"\",COUNTIF(Tarefas!C:C,D14))","v":""}]
[null,null,null,{"$f":"IFERROR(INDEX(Tarefas!$C$2:$C$891,SMALL(IF(ISERROR(MATCH(Tarefas!$C$2:$C$891,D$1:D14,0))*(Tarefas!$C$2:$C$891<>\"\"),ROW(Tarefas!$C$2:$C$891)-ROW(Tarefas!#REF!)+1),1)),\"\")","v":""},{"$f":"IF(D15=\"\",\"\",COUNTIF(Tarefas!C:C,D15))","v":""}]
[null,null,null,{"$f":"IFERROR(INDEX(Tarefas!$C$2:$C$891,SMALL(IF(ISERROR(MATCH(Tarefas!$C$2:$C$891,D$1:D15,0))*(Tarefas!$C$2:$C$891<>\"\"),ROW(Tarefas!$C$2:$C$891)-ROW(Tarefas!#REF!)+1),1)),\"\")","v":""},{"$f":"IF(D16=\"\",\"\",COUNTIF(Tarefas!C:C,D16))","v":""}]
[null,null,null,{"$f":"IFERROR(INDEX(Tarefas!$C$2:$C$891,SMALL(IF(ISERROR(MATCH(Tarefas!$C$2:$C$891,D$1:D16,0))*(Tarefas!$C$2:$C$891<>\"\"),ROW(Tarefas!$C$2:$C$891)-ROW(Tarefas!#REF!)+1),1)),\"\")","v":""},{"$f":"IF(D17=\"\",\"\",COUNTIF(Tarefas!C:C,D17))","v":""}]
[null,null,null,{"$f":"IFERROR(INDEX(Tarefas!$C$2:$C$891,SMALL(IF(ISERROR(MATCH(Tarefas!$C$2:$C$891,D$1:D17,0))*(Tarefas!$C$2:$C$891<>\"\"),ROW(Tarefas!$C$2:$C$891)-ROW(Tarefas!#REF!)+1),1)),\"\")","v":""},{"$f":"IF(D18=\"\",\"\",COUNTIF(Tarefas!C:C,D18))","v":""}]
[null,null,null,{"$f":"IFERROR(INDEX(Tarefas!$C$2:$C$891,SMALL(IF(ISERROR(MATCH(Tarefas!$C$2:$C$891,D$1:D18,0))*(Tarefas!$C$2:$C$891<>\"\"),ROW(Tarefas!$C$2:$C$891)-ROW(Tarefas!#REF!)+1),1)),\"\")","v":""},{"$f":"IF(D19=\"\",\"\",COUNTIF(Tarefas!C:C,D19))","v":""}]
[null,null,null,{"$f":"IFERROR(INDEX(Tarefas!$C$2:$C$891,SMALL(IF(ISERROR(MATCH(Tarefas!$C$2:$C$891,D$1:D19,0))*(Tarefas!$C$2:$C$891<>\"\"),ROW(Tarefas!$C$2:$C$891)-ROW(Tarefas!#REF!)+1),1)),\"\")","v":""},{"$f":"IF(D20=\"\",\"\",COUNTIF(Tarefas!C:C,D20))","v":""}]
[null,null,null,{"$f":"IFERROR(INDEX(Tarefas!$C$2:$C$891,SMALL(IF(ISERROR(MATCH(Tarefas!$C$2:$C$891,D$1:D20,0))*(Tarefas!$C$2:$C$891<>\"\"),ROW(Tarefas!$C$2:$C$891)-ROW(Tarefas!#REF!)+1),1)),\"\")","v":""},{"$f":"IF(D21=\"\",\"\",COUNTIF(Tarefas!C:C,D21))","v":""}]
[null,null,null,{"$f":"IFERROR(INDEX(Tarefas!$C$2:$C$891,SMALL(IF(ISERROR(MATCH(Tarefas!$C$2:$C$891,D$1:D21,0))*(Tarefas!$C$2:$C$891<>\"\"),ROW(Tarefas!$C$2:$C$891)-ROW(Tarefas!#REF!)+1),1)),\"\")","v":""},{"$f":"IF(D22=\"\",\"\",COUNTIF(Tarefas!C:C,D22))","v":""}]
[null,null,null,{"$f":"IFERROR(INDEX(Tarefas!$C$2:$C$891,SMALL(IF(ISERROR(MATCH(Tarefas!$C$2:$C$891,D$1:D22,0))*(Tarefas!$C$2:$C$891<>\"\"),ROW(Tarefas!$C$2:$C$891)-ROW(Tarefas!#REF!)+1),1)),\"\")","v":""},{"$f":"IF(D23=\"\",\"\",COUNTIF(Tarefas!C:C,D23))","v":""}]
[null,null,null,{"$f":"IFERROR(INDEX(Tarefas!$C$2:$C$891,SMALL(IF(ISERROR(MATCH(Tarefas!$C$2:$C$891,D$1:D23,0))*(Tarefas!$C$2:$C$891<>\"\"),ROW(Tarefas!$C$2:$C$891)-ROW(Tarefas!#REF!)+1),1)),\"\")","v":""},{"$f":"IF(D24=\"\",\"\",COUNTIF(Tarefas!C:C,D24))","v":""}]
[null,null,null,{"$f":"IFERROR(INDEX(Tarefas!$C$2:$C$891,SMALL(IF(ISERROR(MATCH(Tarefas!$C$2:$C$891,D$1:D24,0))*(Tarefas!$C$2:$C$891<>\"\"),ROW(Tarefas!$C$2:$C$891)-ROW(Tarefas!#REF!)+1),1)),\"\")","v":""},{"$f":"IF(D25=\"\",\"\",COUNTIF(Tarefas!C:C,D25))","v":""}]
[null,null,null,{"$f":"IFERROR(INDEX(Tarefas!$C$2:$C$891,SMALL(IF(ISERROR(MATCH(Tarefas!$C$2:$C$891,D$1:D25,0))*(Tarefas!$C$2:$C$891<>\"\"),ROW(Tarefas!$C$2:$C$891)-ROW(Tarefas!#REF!)+1),1)),\"\")","v":""},{"$f":"IF(D26=\"\",\"\",COUNTIF(Tarefas!C:C,D26))","v":""}]
[null,null,null,{"$f":"IFERROR(INDEX(Tarefas!$C$2:$C$891,SMALL(IF(ISERROR(MATCH(Tarefas!$C$2:$C$891,D$1:D26,0))*(Tarefas!$C$2:$C$891<>\"\"),ROW(Tarefas!$C$2:$C$891)-ROW(Tarefas!#REF!)+1),1)),\"\")","v":""},{"$f":"IF(D27=\"\",\"\",COUNTIF(Tarefas!C:C,D27))","v":""}]
[null,null,null,{"$f":"IFERROR(INDEX(Tarefas!$C$2:$C$891,SMALL(IF(ISERROR(MATCH(Tarefas!$C$2:$C$891,D$1:D27,0))*(Tarefas!$C$2:$C$891<>\"\"),ROW(Tarefas!$C$2:$C$891)-ROW(Tarefas!#REF!)+1),1)),\"\")","v":""},{"$f":"IF(D28=\"\",\"\",COUNTIF(Tarefas!C:C,D28))","v":""}]
[null,null,null,{"$f":"IFERROR(INDEX(Tarefas!$C$2:$C$891,SMALL(IF(ISERROR(MATCH(Tarefas!$C$2:$C$891,D$1:D28,0))*(Tarefas!$C$2:$C$891<>\"\"),ROW(Tarefas!$C$2:$C$891)-ROW(Tarefas!#REF!)+1),1)),\"\")","v":""},{"$f":"IF(D29=\"\",\"\",COUNTIF(Tarefas!C:C,D29))","v":""}]
[null,null,null,{"$f":"IFERROR(INDEX(Tarefas!$C$2:$C$891,SMALL(IF(ISERROR(MATCH(Tarefas!$C$2:$C$891,D$1:D29,0))*(Tarefas!$C$2:$C$891<>\"\"),ROW(Tarefas!$C$2:$C$891)-ROW(Tarefas!#REF!)+1),1)),\"\")","v":""},{"$f":"IF(D30=\"\",\"\",COUNTIF(Tarefas!C:C,D30))","v":""}]
[null,null,null,{"$f":"IFERROR(INDEX(Tarefas!$C$2:$C$891,SMALL(IF(ISERROR(MATCH(Tarefas!$C$2:$C$891,D$1:D30,0))*(Tarefas!$C$2:$C$891<>\"\"),ROW(Tarefas!$C$2:$C$891)-ROW(Tarefas!#REF!)+1),1)),\"\")","v":""},{"$f":"IF(D31=\"\",\"\",COUNTIF(Tarefas!C:C,D31))","v":""}]
[null,null,null,{"$f":"IFERROR(INDEX(Tarefas!$C$2:$C$891,SMALL(IF(ISERROR(MATCH(Tarefas!$C$2:$C$891,D$1:D31,0))*(Tarefas!$C$2:$C$891<>\"\"),ROW(Tarefas!$C$2:$C$891)-ROW(Tarefas!#REF!)+1),1)),\"\")","v":""},{"$f":"IF(D32=\"\",\"\",COUNTIF(Tarefas!C:C,D32))","v":""}]
[null,null,null,{"$f":"IFERROR(INDEX(Tarefas!$C$2:$C$891,SMALL(IF(ISERROR(MATCH(Tarefas!$C$2:$C$891,D$1:D32,0))*(Tarefas!$C$2:$C$891<>\"\"),ROW(Tarefas!$C$2:$C$891)-ROW(Tarefas!#REF!)+1),1)),\"\")","v":""},{"$f":"IF(D33=\"\",\"\",COUNTIF(Tarefas!C:C,D33))","v":""}]
[null,null,null,{"$f":"IFERROR(INDEX(Tarefas!$C$2:$C$891,SMALL(IF(ISERROR(MATCH(Tarefas!$C$2:$C$891,D$1:D33,0))*(Tarefas!$C$2:$C$891<>\"\"),ROW(Tarefas!$C$2:$C$891)-ROW(Tarefas!#REF!)+1),1)),\"\")","v":""},{"$f":"IF(D34=\"\",\"\",COUNTIF(Tarefas!C:C,D34))","v":""}]
[null,null,null,{"$f":"IFERROR(INDEX(Tarefas!$C$2:$C$891,SMALL(IF(ISERROR(MATCH(Tarefas!$C$2:$C$891,D$1:D34,0))*(Tarefas!$C$2:$C$891<>\"\"),ROW(Tarefas!$C$2:$C$891)-ROW(Tarefas!#REF!)+1),1)),\"\")","v":""},{"$f":"IF(D35=\"\",\"\",COUNTIF(Tarefas!C:C,D35))","v":""}]
[null,null,null,{"$f":"IFERROR(INDEX(Tarefas!$C$2:$C$891,SMALL(IF(ISERROR(MATCH(Tarefas!$C$2:$C$891,D$1:D35,0))*(Tarefas!$C$2:$C$891<>\"\"),ROW(Tarefas!$C$2:$C$891)-ROW(Tarefas!#REF!)+1),1)),\"\")","v":""},{"$f":"IF(D36=\"\",\"\",COUNTIF(Tarefas!C:C,D36))","v":""}]
[null,null,null,{"$f":"IFERROR(INDEX(Tarefas!$C$2:$C$891,SMALL(IF(ISERROR(MATCH(Tarefas!$C$2:$C$891,D$1:D36,0))*(Tarefas!$C$2:$C$891<>\"\"),ROW(Tarefas!$C$2:$C$891)-ROW(Tarefas!#REF!)+1),1)),\"\")","v":""},{"$f":"IF(D37=\"\",\"\",COUNTIF(Tarefas!C:C,D37))","v":""}]
[null,null,null,{"$f":"IFERROR(INDEX(Tarefas!$C$2:$C$891,SMALL(IF(ISERROR(MATCH(Tarefas!$C$2:$C$891,D$1:D37,0))*(Tarefas!$C$2:$C$891<>\"\"),ROW(Tarefas!$C$2:$C$891)-ROW(Tarefas!#REF!)+1),1)),\"\")","v":""},{"$f":"IF(D38=\"\",\"\",COUNTIF(Tarefas!C:C,D38))","v":""}]
[null,null,null,{"$f":"IFERROR(INDEX(Tarefas!$C$2:$C$891,SMALL(IF(ISERROR(MATCH(Tarefas!$C$2:$C$891,D$1:D38,0))*(Tarefas!$C$2:$C$891<>\"\"),ROW(Tarefas!$C$2:$C$891)-ROW(Tarefas!#REF!)+1),1)),\"\")","v":""},{"$f":"IF(D39=\"\",\"\",COUNTIF(Tarefas!C:C,D39))","v":""}]
[null,null,null,{"$f":"IFERROR(INDEX(Tarefas!$C$2:$C$891,SMALL(IF(ISERROR(MATCH(Tarefas!$C$2:$C$891,D$1:D39,0))*(Tarefas!$C$2:$C$891<>\"\"),ROW(Tarefas!$C$2:$C$891)-ROW(Tarefas!#REF!)+1),1)),\"\")","v":""},{"$f":"IF(D40=\"\",\"\",COUNTIF(Tarefas!C:C,D40))","v":""}]
[null,null,null,{"$f":"IFERROR(INDEX(Tarefas!$C$2:$C$891,SMALL(IF(ISERROR(MATCH(Tarefas!$C$2:$C$891,D$1:D40,0))*(Tarefas!$C$2:$C$891<>\"\"),ROW(Tarefas!$C$2:$C$891)-ROW(Tarefas!#REF!)+1),1)),\"\")","v":""},{"$f":"IF(D41=\"\",\"\",COUNTIF(Tarefas!C:C,D41))","v":""}]
[null,null,null,{"$f":"IFERROR(INDEX(Tarefas!$C$2:$C$891,SMALL(IF(ISERROR(MATCH(Tarefas!$C$2:$C$891,D$1:D41,0))*(Tarefas!$C$2:$C$891<>\"\"),ROW(Tarefas!$C$2:$C$891)-ROW(Tarefas!#REF!)+1),1)),\"\")","v":""},{"$f":"IF(D42=\"\",\"\",COUNTIF(Tarefas!C:C,D42))","v":""}]
[null,null,null,{"$f":"IFERROR(INDEX(Tarefas!$C$2:$C$891,SMALL(IF(ISERROR(MATCH(Tarefas!$C$2:$C$891,D$1:D42,0))*(Tarefas!$C$2:$C$891<>\"\"),ROW(Tarefas!$C$2:$C$891)-ROW(Tarefas!#REF!)+1),1)),\"\")","v":""},{"$f":"IF(D43=\"\",\"\",COUNTIF(Tarefas!C:C,D43))","v":""}]
[null,null,null,{"$f":"IFERROR(INDEX(Tarefas!$C$2:$C$891,SMALL(IF(ISERROR(MATCH(Tarefas!$C$2:$C$891,D$1:D43,0))*(Tarefas!$C$2:$C$891<>\"\"),ROW(Tarefas!$C$2:$C$891)-ROW(Tarefas!#REF!)+1),1)),\"\")","v":""},{"$f":"IF(D44=\"\",\"\",COUNTIF(Tarefas!C:C,D44))","v":""}]
[null,null,null,{"$f":"IFERROR(INDEX(Tarefas!$C$2:$C$891,SMALL(IF(ISERROR(MATCH(Tarefas!$C$2:$C$891,D$1:D44,0))*(Tarefas!$C$2:$C$891<>\"\"),ROW(Tarefas!$C$2:$C$891)-ROW(Tarefas!#REF!)+1),1)),\"\")","v":""},{"$f":"IF(D45=\"\",\"\",COUNTIF(Tarefas!C:C,D45))","v":""}]
[null,null,null,{"$f":"IFERROR(INDEX(Tarefas!$C$2:$C$891,SMALL(IF(ISERROR(MATCH(Tarefas!$C$2:$C$891,D$1:D45,0))*(Tarefas!$C$2:$C$891<>\"\"),ROW(Tarefas!$C$2:$C$891)-ROW(Tarefas!#REF!)+1),1)),\"\")","v":""},{"$f":"IF(D46=\"\",\"\",COUNTIF(Tarefas!C:C,D46))","v":""}]
[null,null,null,{"$f":"IFERROR(INDEX(Tarefas!$C$2:$C$891,SMALL(IF(ISERROR(MATCH(Tarefas!$C$2:$C$891,D$1:D46,0))*(Tarefas!$C$2:$C$891<>\"\"),ROW(Tarefas!$C$2:$C$891)-ROW(Tarefas!#REF!)+1),1)),\"\")","v":""},{"$f":"IF(D47=\"\",\"\",COUNTIF(Tarefas!C:C,D47))","v":""}]
[null,null,null,{"$f":"IFERROR(INDEX(Tarefas!$C$2:$C$891,SMALL(IF(ISERROR(MATCH(Tarefas!$C$2:$C$891,D$1:D47,0))*(Tarefas!$C$2:$C$891<>\"\"),ROW(Tarefas!$C$2:$C$891)-ROW(Tarefas!#REF!)+1),1)),\"\")","v":""},{"$f":"IF(D48=\"\",\"\",COUNTIF(Tarefas!C:C,D48))","v":""}]
[null,null,null,{"$f":"IFERROR(INDEX(Tarefas!$C$2:$C$891,SMALL(IF(ISERROR(MATCH(Tarefas!$C$2:$C$891,D$1:D48,0))*(Tarefas!$C$2:$C$891<>\"\"),ROW(Tarefas!$C$2:$C$891)-ROW(Tarefas!#REF!)+1),1)),\"\")","v":""},{"$f":"IF(D49=\"\",\"\",COUNTIF(Tarefas!C:C,D49))","v":""}]
[null,null,null,{"$f":"IFERROR(INDEX(Tarefas!$C$2:$C$891,SMALL(IF(ISERROR(MATCH(Tarefas!$C$2:$C$891,D$1:D49,0))*(Tarefas!$C$2:$C$891<>\"\"),ROW(Tarefas!$C$2:$C$891)-ROW(Tarefas!#REF!)+1),1)),\"\")","v":""},{"$f":"IF(D50=\"\",\"\",COUNTIF(Tarefas!C:C,D50))","v":""}]
[null,null,null,{"$f":"IFERROR(INDEX(Tarefas!$C$2:$C$891,SMALL(IF(ISERROR(MATCH(Tarefas!$C$2:$C$891,D$1:D50,0))*(Tarefas!$C$2:$C$891<>\"\"),ROW(Tarefas!$C$2:$C$891)-ROW(Tarefas!#REF!)+1),1)),\"\")","v":""},{"$f":"IF(D51=\"\",\"\",COUNTIF(Tarefas!C:C,D51))","v":""}]
[null,null,null,{"$f":"IFERROR(INDEX(Tarefas!$C$2:$C$891,SMALL(IF(ISERROR(MATCH(Tarefas!$C$2:$C$891,D$1:D51,0))*(Tarefas!$C$2:$C$891<>\"\"),ROW(Tarefas!$C$2:$C$891)-ROW(Tarefas!#REF!)+1),1)),\"\")","v":""},{"$f":"IF(D52=\"\",\"\",COUNTIF(Tarefas!C:C,D52))","v":""}]
[null,null,null,{"$f":"IFERROR(INDEX(Tarefas!$C$2:$C$891,SMALL(IF(ISERROR(MATCH(Tarefas!$C$2:$C$891,D$1:D52,0))*(Tarefas!$C$2:$C$891<>\"\"),ROW(Tarefas!$C$2:$C$891)-ROW(Tarefas!#REF!)+1),1)),\"\")","v":""},{"$f":"IF(D53=\"\",\"\",COUNTIF(Tarefas!C:C,D53))","v":""}]
[null,null,null,{"$f":"IFERROR(INDEX(Tarefas!$C$2:$C$891,SMALL(IF(ISERROR(MATCH(Tarefas!$C$2:$C$891,D$1:D53,0))*(Tarefas!$C$2:$C$891<>\"\"),ROW(Tarefas!$C$2:$C$891)-ROW(Tarefas!#REF!)+1),1)),\"\")","v":""},{"$f":"IF(D54=\"\",\"\",COUNTIF(Tarefas!C:C,D54))","v":""}]
[null,null,null,{"$f":"IFERROR(INDEX(Tarefas!$C$2:$C$891,SMALL(IF(ISERROR(MATCH(Tarefas!$C$2:$C$891,D$1:D54,0))*(Tarefas!$C$2:$C$891<>\"\"),ROW(Tarefas!$C$2:$C$891)-ROW(Tarefas!#REF!)+1),1)),\"\")","v":""},{"$f":"IF(D55=\"\",\"\",COUNTIF(Tarefas!C:C,D55))","v":""}]
[null,null,null,{"$f":"IFERROR(INDEX(Tarefas!$C$2:$C$891,SMALL(IF(ISERROR(MATCH(Tarefas!$C$2:$C$891,D$1:D55,0))*(Tarefas!$C$2:$C$891<>\"\"),ROW(Tarefas!$C$2:$C$891)-ROW(Tarefas!#REF!)+1),1)),\"\")","v":""},{"$f":"IF(D56=\"\",\"\",COUNTIF(Tarefas!C:C,D56))","v":""}]
[null,null,null,{"$f":"IFERROR(INDEX(Tarefas!$C$2:$C$891,SMALL(IF(ISERROR(MATCH(Tarefas!$C$2:$C$891,D$1:D56,0))*(Tarefas!$C$2:$C$891<>\"\"),ROW(Tarefas!$C$2:$C$891)-ROW(Tarefas!#REF!)+1),1)),\"\")","v":""},{"$f":"IF(D57=\"\",\"\",COUNTIF(Tarefas!C:C,D57))","v":""}]
[null,null,null,{"$f":"IFERROR(INDEX(Tarefas!$C$2:$C$891,SMALL(IF(ISERROR(MATCH(Tarefas!$C$2:$C$891,D$1:D57,0))*(Tarefas!$C$2:$C$891<>\"\"),ROW(Tarefas!$C$2:$C$891)-ROW(Tarefas!#REF!)+1),1)),\"\")","v":""},{"$f":"IF(D58=\"\",\"\",COUNTIF(Tarefas!C:C,D58))","v":""}]
[null,null,null,{"$f":"IFERROR(INDEX(Tarefas!$C$2:$C$891,SMALL(IF(ISERROR(MATCH(Tarefas!$C$2:$C$891,D$1:D58,0))*(Tarefas!$C$2:$C$891<>\"\"),ROW(Tarefas!$C$2:$C$891)-ROW(Tarefas!#REF!)+1),1)),\"\")","v":""},{"$f":"IF(D59=\"\",\"\",COUNTIF(Tarefas!C:C,D59))","v":""}]
[null,null,null,{"$f":"IFERROR(INDEX(Tarefas!$C$2:$C$891,SMALL(IF(ISERROR(MATCH(Tarefas!$C$2:$C$891,D$1:D59,0))*(Tarefas!$C$2:$C$891<>\"\"),ROW(Tarefas!$C$2:$C$891)-ROW(Tarefas!#REF!)+1),1)),\"\")","v":""},{"$f":"IF(D60=\"\",\"\",COUNTIF(Tarefas!C:C,D60))","v":""}]
[null,null,null,{"$f":"IFERROR(INDEX(Tarefas!$C$2:$C$891,SMALL(IF(ISERROR(MATCH(Tarefas!$C$2:$C$891,D$1:D60,0))*(Tarefas!$C$2:$C$891<>\"\"),ROW(Tarefas!$C$2:$C$891)-ROW(Tarefas!#REF!)+1),1)),\"\")","v":""},{"$f":"IF(D61=\"\",\"\",COUNTIF(Tarefas!C:C,D61))","v":""}]
[null,null,null,{"$f":"IFERROR(INDEX(Tarefas!$C$2:$C$891,SMALL(IF(ISERROR(MATCH(Tarefas!$C$2:$C$891,D$1:D61,0))*(Tarefas!$C$2:$C$891<>\"\"),ROW(Tarefas!$C$2:$C$891)-ROW(Tarefas!#REF!)+1),1)),\"\")","v":""},{"$f":"IF(D62=\"\",\"\",COUNTIF(Tarefas!C:C,D62))","v":""}]
[null,null,null,{"$f":"IFERROR(INDEX(Tarefas!$C$2:$C$891,SMALL(IF(ISERROR(MATCH(Tarefas!$C$2:$C$891,D$1:D62,0))*(Tarefas!$C$2:$C$891<>\"\"),ROW(Tarefas!$C$2:$C$891)-ROW(Tarefas!#REF!)+1),1)),\"\")","v":""},{"$f":"IF(D63=\"\",\"\",COUNTIF(Tarefas!C:C,D63))","v":""}]
[null,null,null,{"$f":"IFERROR(INDEX(Tarefas!$C$2:$C$891,SMALL(IF(ISERROR(MATCH(Tarefas!$C$2:$C$891,D$1:D63,0))*(Tarefas!$C$2:$C$891<>\"\"),ROW(Tarefas!$C$2:$C$891)-ROW(Tarefas!#REF!)+1),1)),\"\")","v":""},{"$f":"IF(D64=\"\",\"\",COUNTIF(Tarefas!C:C,D64))","v":""}]
[null,null,null,{"$f":"IFERROR(INDEX(Tarefas!$C$2:$C$891,SMALL(IF(ISERROR(MATCH(Tarefas!$C$2:$C$891,D$1:D64,0))*(Tarefas!$C$2:$C$891<>\"\"),ROW(Tarefas!$C$2:$C$891)-ROW(Tarefas!#REF!)+1),1)),\"\")","v":""},{"$f":"IF(D65=\"\",\"\",COUNTIF(Tarefas!C:C,D65))","v":""}]
[null,null,null,{"$f":"IFERROR(INDEX(Tarefas!$C$2:$C$891,SMALL(IF(ISERROR(MATCH(Tarefas!$C$2:$C$891,D$1:D65,0))*(Tarefas!$C$2:$C$891<>\"\"),ROW(Tarefas!$C$2:$C$891)-ROW(Tarefas!#REF!)+1),1)),\"\")","v":""},{"$f":"IF(D66=\"\",\"\",COUNTIF(Tarefas!C:C,D66))","v":""}]
[null,null,null,{"$f":"IFERROR(INDEX(Tarefas!$C$2:$C$891,SMALL(IF(ISERROR(MATCH(Tarefas!$C$2:$C$891,D$1:D66,0))*(Tarefas!$C$2:$C$891<>\"\"),ROW(Tarefas!$C$2:$C$891)-ROW(Tarefas!#REF!)+1),1)),\"\")","v":""},{"$f":"IF(D67=\"\",\"\",COUNTIF(Tarefas!C:C,D67))","v":""}]
[null,null,null,{"$f":"IFERROR(INDEX(Tarefas!$C$2:$C$891,SMALL(IF(ISERROR(MATCH(Tarefas!$C$2:$C$891,D$1:D67,0))*(Tarefas!$C$2:$C$891<>\"\"),ROW(Tarefas!$C$2:$C$891)-ROW(Tarefas!#REF!)+1),1)),\"\")","v":""},{"$f":"IF(D68=\"\",\"\",COUNTIF(Tarefas!C:C,D68))","v":""}]
[null,null,null,{"$f":"IFERROR(INDEX(Tarefas!$C$2:$C$891,SMALL(IF(ISERROR(MATCH(Tarefas!$C$2:$C$891,D$1:D68,0))*(Tarefas!$C$2:$C$891<>\"\"),ROW(Tarefas!$C$2:$C$891)-ROW(Tarefas!#REF!)+1),1)),\"\")","v":""},{"$f":"IF(D69=\"\",\"\",COUNTIF(Tarefas!C:C,D69))","v":""}]
[null,null,null,{"$f":"IFERROR(INDEX(Tarefas!$C$2:$C$891,SMALL(IF(ISERROR(MATCH(Tarefas!$C$2:$C$891,D$1:D69,0))*(Tarefas!$C$2:$C$891<>\"\"),ROW(Tarefas!$C$2:$C$891)-ROW(Tarefas!#REF!)+1),1)),\"\")","v":""},{"$f":"IF(D70=\"\",\"\",COUNTIF(Tarefas!C:C,D70))","v":""}]
[null,null,null,{"$f":"IFERROR(INDEX(Tarefas!$C$2:$C$891,SMALL(IF(ISERROR(MATCH(Tarefas!$C$2:$C$891,D$1:D70,0))*(Tarefas!$C$2:$C$891<>\"\"),ROW(Tarefas!$C$2:$C$891)-ROW(Tarefas!#REF!)+1),1)),\"\")","v":""},{"$f":"IF(D71=\"\",\"\",COUNTIF(Tarefas!C:C,D71))","v":""}]
[null,null,null,{"$f":"IFERROR(INDEX(Tarefas!$C$2:$C$891,SMALL(IF(ISERROR(MATCH(Tarefas!$C$2:$C$891,D$1:D71,0))*(Tarefas!$C$2:$C$891<>\"\"),ROW(Tarefas!$C$2:$C$891)-ROW(Tarefas!#REF!)+1),1)),\"\")","v":""},{"$f":"IF(D72=\"\",\"\",COUNTIF(Tarefas!C:C,D72))","v":""}]
[null,null,null,{"$f":"IFERROR(INDEX(Tarefas!$C$2:$C$891,SMALL(IF(ISERROR(MATCH(Tarefas!$C$2:$C$891,D$1:D72,0))*(Tarefas!$C$2:$C$891<>\"\"),ROW(Tarefas!$C$2:$C$891)-ROW(Tarefas!#REF!)+1),1)),\"\")","v":""},{"$f":"IF(D73=\"\",\"\",COUNTIF(Tarefas!C:C,D73))","v":""}]
[null,null,null,{"$f":"IFERROR(INDEX(Tarefas!$C$2:$C$891,SMALL(IF(ISERROR(MATCH(Tarefas!$C$2:$C$891,D$1:D73,0))*(Tarefas!$C$2:$C$891<>\"\"),ROW(Tarefas!$C$2:$C$891)-ROW(Tarefas!#REF!)+1),1)),\"\")","v":""},{"$f":"IF(D74=\"\",\"\",COUNTIF(Tarefas!C:C,D74))","v":""}]
[null,null,null,{"$f":"IFERROR(INDEX(Tarefas!$C$2:$C$891,SMALL(IF(ISERROR(MATCH(Tarefas!$C$2:$C$891,D$1:D74,0))*(Tarefas!$C$2:$C$891<>\"\"),ROW(Tarefas!$C$2:$C$891)-ROW(Tarefas!#REF!)+1),1)),\"\")","v":""},{"$f":"IF(D75=\"\",\"\",COUNTIF(Tarefas!C:C,D75))","v":""}]
[null,null,null,{"$f":"IFERROR(INDEX(Tarefas!$C$2:$C$891,SMALL(IF(ISERROR(MATCH(Tarefas!$C$2:$C$891,D$1:D75,0))*(Tarefas!$C$2:$C$891<>\"\"),ROW(Tarefas!$C$2:$C$891)-ROW(Tarefas!#REF!)+1),1)),\"\")","v":""},{"$f":"IF(D76=\"\",\"\",COUNTIF(Tarefas!C:C,D76))","v":""}]
[null,null,null,{"$f":"IFERROR(INDEX(Tarefas!$C$2:$C$891,SMALL(IF(ISERROR(MATCH(Tarefas!$C$2:$C$891,D$1:D76,0))*(Tarefas!$C$2:$C$891<>\"\"),ROW(Tarefas!$C$2:$C$891)-ROW(Tarefas!#REF!)+1),1)),\"\")","v":""},{"$f":"IF(D77=\"\",\"\",COUNTIF(Tarefas!C:C,D77))","v":""}]
[null,null,null,{"$f":"IFERROR(INDEX(Tarefas!$C$2:$C$891,SMALL(IF(ISERROR(MATCH(Tarefas!$C$2:$C$891,D$1:D77,0))*(Tarefas!$C$2:$C$891<>\"\"),ROW(Tarefas!$C$2:$C$891)-ROW(Tarefas!#REF!)+1),1)),\"\")","v":""},{"$f":"IF(D78=\"\",\"\",COUNTIF(Tarefas!C:C,D78))","v":""}]
[null,null,null,{"$f":"IFERROR(INDEX(Tarefas!$C$2:$C$891,SMALL(IF(ISERROR(MATCH(Tarefas!$C$2:$C$891,D$1:D78,0))*(Tarefas!$C$2:$C$891<>\"\"),ROW(Tarefas!$C$2:$C$891)-ROW(Tarefas!#REF!)+1),1)),\"\")","v":""},{"$f":"IF(D79=\"\",\"\",COUNTIF(Tarefas!C:C,D79))","v":""}]
[null,null,null,{"$f":"IFERROR(INDEX(Tarefas!$C$2:$C$891,SMALL(IF(ISERROR(MATCH(Tarefas!$C$2:$C$891,D$1:D79,0))*(Tarefas!$C$2:$C$891<>\"\"),ROW(Tarefas!$C$2:$C$891)-ROW(Tarefas!#REF!)+1),1)),\"\")","v":""},{"$f":"IF(D80=\"\",\"\",COUNTIF(Tarefas!C:C,D80))","v":""}]
[null,null,null,{"$f":"IFERROR(INDEX(Tarefas!$C$2:$C$891,SMALL(IF(ISERROR(MATCH(Tarefas!$C$2:$C$891,D$1:D80,0))*(Tarefas!$C$2:$C$891<>\"\"),ROW(Tarefas!$C$2:$C$891)-ROW(Tarefas!#REF!)+1),1)),\"\")","v":""},{"$f":"IF(D81=\"\",\"\",COUNTIF(Tarefas!C:C,D81))","v":""}]
[null,null,null,{"$f":"IFERROR(INDEX(Tarefas!$C$2:$C$891,SMALL(IF(ISERROR(MATCH(Tarefas!$C$2:$C$891,D$1:D81,0))*(Tarefas!$C$2:$C$891<>\"\"),ROW(Tarefas!$C$2:$C$891)-ROW(Tarefas!#REF!)+1),1)),\"\")","v":""},{"$f":"IF(D82=\"\",\"\",COUNTIF(Tarefas!C:C,D82))","v":""}]
[null,null,null,{"$f":"IFERROR(INDEX(Tarefas!$C$2:$C$891,SMALL(IF(ISERROR(MATCH(Tarefas!$C$2:$C$891,D$1:D82,0))*(Tarefas!$C$2:$C$891<>\"\"),ROW(Tarefas!$C$2:$C$891)-ROW(Tarefas!#REF!)+1),1)),\"\")","v":""},{"$f":"IF(D83=\"\",\"\",COUNTIF(Tarefas!C:C,D83))","v":""}]
[null,null,null,{"$f":"IFERROR(INDEX(Tarefas!$C$2:$C$891,SMALL(IF(ISERROR(MATCH(Tarefas!$C$2:$C$891,D$1:D83,0))*(Tarefas!$C$2:$C$891<>\"\"),ROW(Tarefas!$C$2:$C$891)-ROW(Tarefas!#REF!)+1),1)),\"\")","v":""},{"$f":"IF(D84=\"\",\"\",COUNTIF(Tarefas!C:C,D84))","v":""}]
[null,null,null,{"$f":"IFERROR(INDEX(Tarefas!$C$2:$C$891,SMALL(IF(ISERROR(MATCH(Tarefas!$C$2:$C$891,D$1:D84,0))*(Tarefas!$C$2:$C$891<>\"\"),ROW(Tarefas!$C$2:$C$891)-ROW(Tarefas!#REF!)+1),1)),\"\")","v":""},{"$f":"IF(D85=\"\",\"\",COUNTIF(Tarefas!C:C,D85))","v":""}]
[null,null,null,{"$f":"IFERROR(INDEX(Tarefas!$C$2:$C$891,SMALL(IF(ISERROR(MATCH(Tarefas!$C$2:$C$891,D$1:D85,0))*(Tarefas!$C$2:$C$891<>\"\"),ROW(Tarefas!$C$2:$C$891)-ROW(Tarefas!#REF!)+1),1)),\"\")","v":""},{"$f":"IF(D86=\"\",\"\",COUNTIF(Tarefas!C:C,D86))","v":""}]
[null,null,null,{"$f":"IFERROR(INDEX(Tarefas!$C$2:$C$891,SMALL(IF(ISERROR(MATCH(Tarefas!$C$2:$C$891,D$1:D86,0))*(Tarefas!$C$2:$C$891<>\"\"),ROW(Tarefas!$C$2:$C$891)-ROW(Tarefas!#REF!)+1),1)),\"\")","v":""},{"$f":"IF(D87=\"\",\"\",COUNTIF(Tarefas!C:C,D87))","v":""}]
[null,null,null,{"$f":"IFERROR(INDEX(Tarefas!$C$2:$C$891,SMALL(IF(ISERROR(MATCH(Tarefas!$C$2:$C$891,D$1:D87,0))*(Tarefas!$C$2:$C$891<>\"\"),ROW(Tarefas!$C$2:$C$891)-ROW(Tarefas!#REF!)+1),1)),\"\")","v":""},{"$f":"IF(D88=\"\",\"\",COUNTIF(Tarefas!C:C,D88))","v":""}]
[null,null,null,{"$f":"IFERROR(INDEX(Tarefas!$C$2:$C$891,SMALL(IF(ISERROR(MATCH(Tarefas!$C$2:$C$891,D$1:D88,0))*(Tarefas!$C$2:$C$891<>\"\"),ROW(Tarefas!$C$2:$C$891)-ROW(Tarefas!#REF!)+1),1)),\"\")","v":""},{"$f":"IF(D89=\"\",\"\",COUNTIF(Tarefas!C:C,D89))","v":""}]
[null,null,null,{"$f":"IFERROR(INDEX(Tarefas!$C$2:$C$891,SMALL(IF(ISERROR(MATCH(Tarefas!$C$2:$C$891,D$1:D89,0))*(Tarefas!$C$2:$C$891<>\"\"),ROW(Tarefas!$C$2:$C$891)-ROW(Tarefas!#REF!)+1),1)),\"\")","v":""},{"$f":"IF(D90=\"\",\"\",COUNTIF(Tarefas!C:C,D90))","v":""}]
[null,null,null,{"$f":"IFERROR(INDEX(Tarefas!$C$2:$C$891,SMALL(IF(ISERROR(MATCH(Tarefas!$C$2:$C$891,D$1:D90,0))*(Tarefas!$C$2:$C$891<>\"\"),ROW(Tarefas!$C$2:$C$891)-ROW(Tarefas!#REF!)+1),1)),\"\")","v":""},{"$f":"IF(D91=\"\",\"\",COUNTIF(Tarefas!C:C,D91))","v":""}]
[null,null,null,{"$f":"IFERROR(INDEX(Tarefas!$C$2:$C$891,SMALL(IF(ISERROR(MATCH(Tarefas!$C$2:$C$891,D$1:D91,0))*(Tarefas!$C$2:$C$891<>\"\"),ROW(Tarefas!$C$2:$C$891)-ROW(Tarefas!#REF!)+1),1)),\"\")","v":""},{"$f":"IF(D92=\"\",\"\",COUNTIF(Tarefas!C:C,D92))","v":""}]
[null,null,null,{"$f":"IFERROR(INDEX(Tarefas!$C$2:$C$891,SMALL(IF(ISERROR(MATCH(Tarefas!$C$2:$C$891,D$1:D92,0))*(Tarefas!$C$2:$C$891<>\"\"),ROW(Tarefas!$C$2:$C$891)-ROW(Tarefas!#REF!)+1),1)),\"\")","v":""},{"$f":"IF(D93=\"\",\"\",COUNTIF(Tarefas!C:C,D93))","v":""}]
[null,null,null,{"$f":"IFERROR(INDEX(Tarefas!$C$2:$C$891,SMALL(IF(ISERROR(MATCH(Tarefas!$C$2:$C$891,D$1:D93,0))*(Tarefas!$C$2:$C$891<>\"\"),ROW(Tarefas!$C$2:$C$891)-ROW(Tarefas!#REF!)+1),1)),\"\")","v":""},{"$f":"IF(D94=\"\",\"\",COUNTIF(Tarefas!C:C,D94))","v":""}]
[null,null,null,{"$f":"IFERROR(INDEX(Tarefas!$C$2:$C$891,SMALL(IF(ISERROR(MATCH(Tarefas!$C$2:$C$891,D$1:D94,0))*(Tarefas!$C$2:$C$891<>\"\"),ROW(Tarefas!$C$2:$C$891)-ROW(Tarefas!#REF!)+1),1)),\"\")","v":""},{"$f":"IF(D95=\"\",\"\",COUNTIF(Tarefas!C:C,D95))","v":""}]
[null,null,null,{"$f":"IFERROR(INDEX(Tarefas!$C$2:$C$891,SMALL(IF(ISERROR(MATCH(Tarefas!$C$2:$C$891,D$1:D95,0))*(Tarefas!$C$2:$C$891<>\"\"),ROW(Tarefas!$C$2:$C$891)-ROW(Tarefas!#REF!)+1),1)),\"\")","v":""},{"$f":"IF(D96=\"\",\"\",COUNTIF(Tarefas!C:C,D96))","v":""}]
[null,null,null,{"$f":"IFERROR(INDEX(Tarefas!$C$2:$C$891,SMALL(IF(ISERROR(MATCH(Tarefas!$C$2:$C$891,D$1:D96,0))*(Tarefas!$C$2:$C$891<>\"\"),ROW(Tarefas!$C$2:$C$891)-ROW(Tarefas!#REF!)+1),1)),\"\")","v":""},{"$f":"IF(D97=\"\",\"\",COUNTIF(Tarefas!C:C,D97))","v":""}]
[null,null,null,{"$f":"IFERROR(INDEX(Tarefas!$C$2:$C$891,SMALL(IF(ISERROR(MATCH(Tarefas!$C$2:$C$891,D$1:D97,0))*(Tarefas!$C$2:$C$891<>\"\"),ROW(Tarefas!$C$2:$C$891)-ROW(Tarefas!#REF!)+1),1)),\"\")","v":""},{"$f":"IF(D98=\"\",\"\",COUNTIF(Tarefas!C:C,D98))","v":""}]
[null,null,null,{"$f":"IFERROR(INDEX(Tarefas!$C$2:$C$891,SMALL(IF(ISERROR(MATCH(Tarefas!$C$2:$C$891,D$1:D98,0))*(Tarefas!$C$2:$C$891<>\"\"),ROW(Tarefas!$C$2:$C$891)-ROW(Tarefas!#REF!)+1),1)),\"\")","v":""},{"$f":"IF(D99=\"\",\"\",COUNTIF(Tarefas!C:C,D99))","v":""}]
[null,null,null,{"$f":"IFERROR(INDEX(Tarefas!$C$2:$C$891,SMALL(IF(ISERROR(MATCH(Tarefas!$C$2:$C$891,D$1:D99,0))*(Tarefas!$C$2:$C$891<>\"\"),ROW(Tarefas!$C$2:$C$891)-ROW(Tarefas!#REF!)+1),1)),\"\")","v":""},{"$f":"IF(D100=\"\",\"\",COUNTIF(Tarefas!C:C,D100))","v":""}]

{"sheet":"Planilha1","index":5,"n_rows":0,"n_cols":0,"rows_kept":0,"cut":false,"hidden":true,"merged":[]}

{"sheet":"M1_Template","index":6,"n_rows":18,"n_cols":1,"rows_kept":18,"cut":false,"hidden":true,"merged":[[0,0,0,9],[2,0,5,9],[17,0,17,8]]}
["{{TITLE}}"]
[]
["{{SUMMARY}}"]
[]
[]
[]
[]
[]
[]
[]
[]
[]
[]
[]
[]
[]
[]
["{{TABLE}}"]

{"sheet":"Meetings_View","index":7,"n_rows":10,"n_cols":10,"rows_kept":10,"cut":false,"hidden":true,"merged":[]}
["Col1","Col2","Col3","Col4","Col5","Col6","Col7","Col8","Col9","Col10"]
[5,"Ana Souza","Planejamento de release","2025-10-06","26/06/2025",0.76,"In Progress","Baixa","RH","Cliente solicitou ajustes."]
[26,"Ana Souza","Analisar incidentes","2025-05-08","28/08/2025",0.4,"In Progress","Baixa","Mobile","Dependência bloqueando tarefa."]
[34,"Ana Souza","Reunião com cliente 2153","16/06/2025","2025-10-07",0.84,"In Progress","Média","Financeiro","Aguardando aprovação do produto."]
[40,"Ana Souza","Refinar histórias 4574","13/07/2025","31/07/2025",0.3,"Canceled","Baixa","Financeiro","Tudo certo para avançar."]
[41,"Ana Souza","Follow‑up com fornecedor","25/07/2025","2025-02-08",0.43,"In Progress","Alta","RH","Necessita materiais de design."]
[43,"Ana Souza","Prototipar novas telas","29/05/2025","2025-11-06",1,"Completed","Média","Produto","Necessita materiais de design."]
[56,"Ana Souza","Refinar histórias","27/11/2025","2025-04-12",1,"Completed","Média","RH","Necessita materiais de design."]
[88,"Ana Souza","Planejamento de release 4145","2025-04-10","27/10/2025",0,"Canceled","Alta","Financeiro","Pendente retorno do fornecedor."]
[98,"Ana Souza","Alinhamento de orçamento","21/10/2025","2025-05-11",0.1,"To Do","Média","RH","Necessita materiais de design."]

{"sheet":"M1_Template (4)","index":8,"n_rows":18,"n_cols":1,"rows_kept":18,"cut":false,"hidden":true,"merged":[[0,0,0,9],[2,0,5,9],[17,0,17,8]]}
["{{TITLE}}"]
[]
["{{SUMMARY}}"]
[]
[]
[]
[]
[]
[]
[]
[]
[]
[]
[]
[]
[]
[]
["{{TABLE}}"]

{"sheet":"M1_Template (3)","index":9,"n_rows":18,"n_cols":1,"rows_kept":18,"cut":false,"hidden":true,"merged":[[0,0,0,9],[2,0,5,9],[17,0,17,8]]}
["{{TITLE}}"]
[]
["{{SUMMARY}}"]
[]
[]
[]
[]
[]
[]
[]
[]
[]
[]
[]
[]
[]
[]
["{{TABLE}}"]

{"sheet":"M1_Template (2)","index":10,"n_rows":18,"n_cols":1,"rows_kept":18,"cut":false,"hidden":true,"merged":[[0,0,0,9],[2,0,5,9],[17,0,17,8]]}
["{{TITLE}}"]
[]
["{{SUMMARY}}"]
[]
[]
[]
[]
[]
[]
[]
[]
[]
[]
[]
[]
[]
[]
["{{TABLE}}"]

{"sheet":"eTask_ScratchCharts","index":11,"n_rows":0,"n_cols":0,"rows_kept":0,"cut":false,"hidden":true,"merged":[]}